{"text_format":"2","workbook":"xlsx","n_sheets":1,"sheets":["MY"],"not_rendered":{"charts":0,"images":0,"macros":0,"external_links":0,"defined_names":1,"comments":0,"pivot_tables":0},"unopened":[],"bounds":{"document_bytes":16777216,"sheet_cells":100000,"run_cost":"one","rows_first":2000,"rows_last":500,"rows_between":2000,"halvings":0,"cell_chars":16384,"cell_head_chars":4096},"cells_cut":0,"cells_raw":0,"read":"whole","date_system":"1900"}

{"sheet":"MY","index":0,"n_rows":48,"n_cols":14,"rows_kept":48,"cut":false,"hidden":false,"merged":[[20,3,28,3],[20,2,28,2],[29,2,46,2],[2,1,3,1],[2,13,19,15],[4,1,19,1],[48,0,48,1],[50,0,50,3],[0,0,0,15],[20,0,28,0],[20,1,28,1],[20,6,28,6],[20,12,28,12],[20,13,46,15],[29,0,46,0],[29,1,46,1],[29,6,46,6],[29,12,46,12],[1,13,1,15],[2,0,19,0]]}
["Scheda di valutazione 2015 - Dirigente Filomena Luisa My"]
["Dimensione ","Oggetto della valutazione ","Peso ","Codice","Descrizione obiettivo ","Indicatore ","Target","Misurazione ","Autovalutazione ","Superiore Gerarchico","Bottom up ","Punteggio complessivo/definitivo","Punteggio pesato ","Note sul processo valutativo "]
["Affidabilità ","Obiettivi individuali (Progetti 2015)",{"$f":"35*0.5","v":17.5},"PROG_DARDRE_01","The world of Research","n. prodotti della ricerca deduplicati/n. totale di prodotti della ricerca potenzialmente duplicati","> 50%",{"$f":"38219/38219","v":1},2,2,null,2,{"$f":"L3*C3/2","v":17.5},"I target per i dirigenti sono valutati con riferimento a tutte le U.O. gestite (Valutazione confermata dal Direttore Generale)"]
[null,null,{"$f":"35*0.5","v":17.5},"PROG_DARDRE_02","Peer tutoring -  Tutorato didattico","n. studenti rispondenti/n. studenti che fruiscono del servizio","> 50%",0.66100000000000003,2,2,null,2,{"$f":"L4*C4/2","v":17.5}]
[null,"Servizi",2.1875,"SERV_DARDRE_01","Punto di informazione Eurodesk","Indicatori Scheda standard SERV_DARDRE_01","Target schede standard ","Si vedano schede di dettaglio ",3.8,3.8,null,3.8,{"$f":"L5*C5/5","v":1.6625000000000001}]
[null,null,2.1875,"SERV_DARDRE_02","Sportello per la mobilità internazionale","Indicatori Scheda standard SERV_DARDRE_02","Target schede standard ","Si vedano schede di dettaglio ",4.7,4.7,null,4.7,{"$f":"L6*C6/5","v":2.0562499999999999}]
[null,null,2.1875,"SERV_DARDRE_03","Divulgazione delle opportunità di finanziamento; Fund Raising","Indicatori Scheda standard SERV_DARDRE_03","Target schede standard ","Si vedano schede di dettaglio ",4.9000000000000004,4.9000000000000004,null,4.9000000000000004,2.1437499999999998]
[null,null,2.1875,"SERV_DARDRE_04","Consulenza in fase di presentazione e gestione progetti di Ricerca, Formazione, Infrastrutture, Grandi Progetti","Indicatori Scheda standard SERV_DARDRE_04","Target schede standard ","Si vedano schede di dettaglio ",4.9000000000000004,4.9000000000000004,null,4.9000000000000004,2.1437499999999998]
[null,null,2.1875,"SERV_DARDRE_05","Consulenza e gestione amministrativa per Spin off e distretti produttivi","Indicatori Scheda standard SERV_DARDRE_05","Target schede standard ","Si vedano schede di dettaglio ",4.9000000000000004,4.9000000000000004,null,4.9000000000000004,2.1437499999999998]
[null,null,2.1875,"SERV_DARDRE_06","Consulenza e gestione amministrativs della prorpietà intellettuale","Indicatori Scheda standard SERV_DARDRE_06","Target schede standard ","Si vedano schede di dettaglio ",4.9000000000000004,4.9000000000000004,null,4.9000000000000004,2.1437499999999998]
[null,null,2.1875,"SERV_DARDRE_07","Consulenza e gestione amministrativa delle partecipazioni e convenzioni di ricerca","Indicatori Scheda standard SERV_DARDRE_07","Target schede standard ","Si vedano schede di dettaglio ",4.8,4.8,null,4.8,2.1]
[null,null,2.1875,"SERV_DARDRE_08","Mobilità internazionale docenti e personale tecnico amministrativo","Indicatori Scheda standard SERV_DARDRE_08","Target schede standard ","Si vedano schede di dettaglio ",4.9000000000000004,4.9000000000000004,null,4.9000000000000004,2.1437499999999998]
[null,null,2.1875,"SERV_DARDRE_09","Consulenza amministrativa per la stipula di convenzioni, accordi e cooperazione internazionale","Indicatori Scheda standard SERV_DARDRE_09","Target schede standard ","Si vedano schede di dettaglio ",5,5,null,5,2.1875]
[null,null,2.1875,"SERV_DARDRE_10","Mobilità internazionale studentesca","Indicatori Scheda standard SERV_DARDRE_10","Target schede standard ","Si vedano schede di dettaglio ",4.7,4.7,null,4.7,2.0562499999999999]
[null,null,2.1875,"SERV_DARDRE_11","Consulenza e adempimenti per la definizione dell'Offerta Formativa annuale dei corsi di studio (corsi di laurea /laurea magistrale a ciclo unico - TFA - PAS)","Indicatori Scheda standard SERV_DARDRE_11","Target schede standard ","Si vedano schede di dettaglio ",4.9000000000000004,4.9000000000000004,null,4.9000000000000004,2.1437499999999998]
[null,null,2.1875,"SERV_DARDRE_12","Orientamento al lavoro","Indicatori Scheda standard SERV_DARDRE_12","Target schede standard ","Si vedano schede di dettaglio ",4.9000000000000004,4.9000000000000004,null,4.9000000000000004,2.1437499999999998]
[null,null,2.1875,"SERV_DARDRE_13","Orientamento in ingresso ed in itinere","Indicatori Scheda standard SERV_DARDRE_13","Target schede standard ","Si vedano schede di dettaglio ",5,5,null,5,2.1875]
[null,null,2.1875,"SERV_DARDRE_14","Consulenza e gestione amministrativa delle convenzioni per la didattica istituzionale e per la formazione non istituzionale","Indicatori Scheda standard SERV_DARDRE_14","Target schede standard ","Si vedano schede di dettaglio ",5,5,null,5,2.1875]
[null,null,2.1875,"SERV_DARDRE_15","Servizio editoriale e redazionale, di grafica e stampa","Indicatori Scheda standard SERV_DARDRE_15","Target schede standard ","Si vedano schede di dettaglio ",5,5,null,5,2.1875]
[null,null,2.1875,"SERV_DARDRE_16","Consulenza, organizzazione e assistenza agli eventi","Indicatori Scheda standard SERV_DARDRE_16","Target schede standard ","Si vedano schede di dettaglio ",4.9000000000000004,4.9000000000000004,null,4.9000000000000004,2.1437499999999998]
["Capacità Individuali ","Indicatori delle capacità individuali ","10/100",null,"Crescita professionale","Mostra disponibilità a sperimentare nuovi progetti","Scala da 1 a 4 (1-Comportamento esibito raramente (0-40%); 2- Comportamento esibito spesso (41-79%); 3- Comportamento esibito molto spesso (80-99%); 4- Comportamento esibito sistematicamente (100%))",null,3,4,2.3636363636363638,{"$f":"AVERAGE(I21:K21)","v":3.1212121212121211},8.0612373737373737,"Le capacità sono valutate con il protocollo superiore gerarchico (peso 30), autovalutazione (peso 35), bottom up (35) "]
[{"$nulls":4},"Processi lavorativi","Dimostra efficacia ed efficienza nella gestione dei processi lavorativi di propria competenza",null,null,4,3,3,{"$f":"AVERAGE(I22:K22)","v":3.3333333333333335}]
[{"$nulls":5},"Individua e propone aree di miglioramento dei processi lavorativi",null,null,3,3,2.5454545454545454,2.8484848484848482]
[{"$nulls":4},"Affidabilità","Rispetta impegni e scadenze",null,null,4,4,3.2272727272727271,3.7424242424242422]
[{"$nulls":5},"Realizza le prestazioni previste/assegnate con l'attenzione, la precisione e l'esattezza richieste ",null,null,4,3,3.1363636363636362,3.3787878787878789]
[{"$nulls":5},"Dimostra di conoscere e rispettare doveri, vincoli e procedure",null,null,4,4,3.2272727272727271,3.7424242424242422]
[{"$nulls":4},"Problem solving tecnico","Individua problemi pratici, anche relativi a processi lavorativi interconnessi, e li risolve con tempestività",null,null,4,3,2.9090909090909092,3.3030303030303032]
[{"$nulls":5},"Nell'immediato, si attiva prevedendo soluzioni alternative, selezionando quella più efficace e attuandola tempestivamente",null,null,4,3,2.6818181818181817,3.2272727272727271]
[{"$nulls":5},"In prospettiva, analizza le situazioni che si sono presentate e si attiva per la ricerca di soluzioni innovative e di miglioramento",null,null,4,3,2.6818181818181817,3.2272727272727271]
["Capacità Manageriali","Indicatori delle capacità manageriali ","20/100",null,"Gestione dell'organizzazione","Analizza le possibili cause di problemi organizzativi e ne anticipa la soluzione","Scala da 1 a 4 (1-Comportamento esibito raramente (0-40%); 2- Comportamento esibito spesso (41-79%); 3- Comportamento esibito molto spesso (80-99%); 4- Comportamento esibito sistematicamente (100%))",null,3,3,2.5454545454545454,2.8484848484848482,15.990530303030303]
[{"$nulls":5},"Risponde con tempestività ed efficacia alla gestione di situazioni organizzative critiche, anche non prevedibili",null,null,4,3,2.5454545454545454,3.1818181818181817]
[{"$nulls":5},"Si adopera per adattare l'organizzazione del proprio ufficio a variazioni nelle esigenze degli utenti interni ed esterni ",null,null,3,3,2.7727272727272729,2.9242424242424243]
[{"$nulls":5},"Si adopera per adattare l'organizzazione del proprio ufficio al variare delle risorse disponibili",null,null,4,3,2.6363636363636362,3.2121212121212124]
[{"$nulls":4},"Programmazione e controllo ","Pianifica il proprio lavoro e quello degli eventuali collaboratori identificando con accuratezza obiettivi compatibili con le risorse disponibili",null,null,3,3,2.8181818181818183,2.9393939393939394]
[{"$nulls":5},"Valuta le risorse necessarie in relazione agli obiettivi da raggiungere ",null,null,4,3,2.6363636363636362,3.2121212121212124]
[{"$nulls":5},"Tiene conto dei risultati del passato in fase di ripianificazione degli obiettivi e delle attività",null,null,4,3,2.8636363636363638,3.2878787878787876]
[{"$nulls":4},"Project Management ","Pianifica con accuratezza le attività da realizzare ed i risultati da ottenere in relazione ai programmi ed i progetti dei quali è responsabile",null,null,4,3,2.8636363636363638,3.2878787878787876]
[{"$nulls":5},"Stima con accuratezza risorse necessarie e tempi di realizzazione delle diverse attività",null,null,3,3,2.7272727272727271,2.9090909090909087]
[{"$nulls":4},"Gestione e valorizzazione dei collaboratori ","Indirizza, motiva e valuta i propri collaboratori ",null,null,3,3,2.5909090909090908,2.8636363636363633]
[{"$nulls":5},"Coinvolge i collaboratori nella definizione degli obiettivi e nella programmazione delle attività",null,null,3,3,2.7727272727272729,2.9242424242424243]
[{"$nulls":4},"Orientamento all'utente interno","Costruisce relazioni positive, proficue ed efficaci con i colleghi",null,null,3,3,2.6818181818181817,2.893939393939394]
[{"$nulls":5},"Condivide le informazioni",null,null,4,3,3.0909090909090908,3.3636363636363633]
[{"$nulls":5},"Contribuisce a creare un clima interno positivo (orientamento al risultato e alla produttività, relazioni interne produttive, valorizzazione delle differenze, ecc…)",null,null,3,3,2.8181818181818183,2.9393939393939394]
[{"$nulls":4},"Orientamento all'utente esterno","Si adopera per offrire un servizio di qualità all'utente",null,null,4,3,2.8181818181818183,3.2727272727272729]
[{"$nulls":5},"Ascolta e comprende i bisogni dell'utente, proponendo soluzioni coerenti alle attese",null,null,4,3,2.9090909090909092,3.3030303030303032]
[{"$nulls":4},"Comunicazione ","Diffonde rapidamente tra i colleghi notizie e informazioni rilevanti per il contesto organizzativo",null,null,4,3,3.0909090909090908,3.3636363636363633]
[{"$nulls":5},"E' chiaro ed esaustivo e rispettoso dei tempi nel corso di incontri e riunioni",null,null,3,3,2.8636363636363638,2.9545454545454546]
[{"$nulls":12},{"$f":"SUM(M3:M47)","v":92.826767676767645}]